bitfinex/quotes_ETHUSD_20240907
["timestamp","ask_amount","ask_price","bid_price","bid_amount"]
[1725721710137,3.0,2308.1,2307.9,4.33284]
[1725721710364,0.45374512,2308.2,2307.9,4.33284]
[1725721710562,0.45374512,2308.2,2308.0,4.33264]
[1725721710834,0.45374512,2308.2,2308.1,4.33256]
[1725721711863,1.29077428,2308.2,2307.8,4.33299]
[1725721712473,0.45374512,2308.2,2308.1,4.33256]
[1725721712970,0.45374512,2308.2,2308.0,4.33264]
[1725721713172,0.45374512,2308.2,2308.1,4.33256]
[1725721713378,0.45374512,2308.2,2308.1,13.08433259]
[1725721713580,1.8006,2308.6,2308.5,8.66362]
[1725721713791,0.45406512,2309.1,2309.0,8.66174]
[1725721714075,14.925,2309.6,2309.0,8.66174]
[1725721714076,4.91654646,2309.5,2309.0,4.33087]
[1725721714381,4.91654646,2309.3,2308.5,4.33172]
[1725721714539,4.91654646,2309.3,2309.1,4.33067]
[1725721714938,4.91654646,2309.3,2308.8,8.66225]
[1725721715234,0.92467665,2309.2,2308.8,4.33111]
[1725721715549,3.92467665,2309.2,2308.8,4.33111]
[1725721716074,3.92467665,2309.2,2308.4,4.33196]
[1725721716075,3.92467665,2309.2,2308.9,4.33095]
[1725721716486,3.92467665,2309.2,2308.9,8.66191]
[1725721716798,4.91654646,2309.0,2308.5,4.33168]
[1725721717002,3.0,2308.9,2308.7,4.33144]
[1725721717213,3.0,2308.9,2308.8,4.33125]
[1725721717657,3.0,2308.9,2308.8,4.46434648]
[1725721717857,1.8006,2309.7,2308.8,7.0294907]
[1725721718079,4.91654646,2310.4,2310.1,4.32881]
[1725721718309,2.2623,2310.7,2310.4,8.6565]
[1725721718517,2.2974,2311.0,2310.6,4.3278]
[1725721718805,7.17884646,2311.1,2310.6,4.32774]
[1725721719099,7.17884646,2311.1,2310.7,5.96617695]
[1725721719306,0.71788465,2311.0,2310.9,4.32731]
[1725721719791,0.71788465,2311.0,2310.9,1.63824197]
[1725721719961,0.71788465,2311.0,2310.9,0.13061487]
[1725721720305,0.71788465,2311.0,2310.9,4.45792487]
[1725721720460,4.91654646,2311.4,2310.9,0.13061487]
[1725721720662,4.91654646,2311.4,2311.0,4.327]
[1725721720889,4.91654646,2311.4,2311.0,4.45749681]
[1725721721272,4.91654646,2311.4,2311.0,0.13049681]
[1725721721501,9.24348646,2311.1,2310.5,0.89937325]
[1725721721713,5.68417465,2311.0,2310.4,5.22751325]
[1725721722000,5.68417465,2311.0,2310.5,1.50780216]
[1725721722309,1.35702465,2311.0,2310.7,4.3275]
[1725721722599,4.91654646,2311.4,2311.0,4.32712]
[1725721722761,4.91654646,2311.4,2311.1,4.32692]
[1725721722762,3.0,2311.3,2311.1,4.32692]
[1725721723361,4.91654646,2311.4,2311.1,4.32692]
[1725721723584,4.91654646,2311.4,2311.1,4.32684]
[1725721723902,4.91654646,2311.4,2310.9,4.32715]
[1725721724072,0.71788465,2311.3,2311.1,4.32683]
[1725721724274,4.91654646,2311.7,2310.8,4.32743]
[1725721724479,4.91654646,2311.7,2311.3,4.32642]
[1725721724676,4.32667,2311.3,2310.7,4.32752]
[1725721725007,4.32667,2311.3,2310.3,0.89937325]
[1725721725008,9.24355646,2311.1,2310.3,0.89937325]
[1725721725309,9.24355646,2311.1,2310.5,4.32792]
[1725721725310,0.92435565,2311.0,2310.5,4.32792]
[1725721725800,3.92435565,2311.0,2310.5,4.32792]
[1725721726006,1.51213897,2311.0,2310.5,4.32795]
[1725721726214,1.51213897,2311.0,2310.5,4.32803]
[1725721726366,5.83928897,2311.0,2310.5,4.32803]
[1725721726565,1.50827854,2310.9,2310.3,4.3283]
[1725721726764,1.50827854,2310.9,2310.7,4.32765]
[1725721727073,1.51213897,2311.0,2310.5,4.328]
[1725721727400,4.32741,2310.9,2310.3,4.32833]
[1725721727606,1.51213897,2311.0,2310.7,4.32764]
[1725721727821,1.51213897,2311.0,2310.2,4.76337]
[1725721727997,1.51213897,2311.0,2310.6,4.32775]
[1725721728298,0.64286854,2310.9,2310.6,4.32775]
[1725721729014,1.51213897,2311.0,2310.6,4.32775]
[1725721729211,2.2623,2311.3,2310.6,4.32775]
[1725721729212,5.2623,2311.3,2310.6,4.32775]
[1725721729377,4.32685,2311.2,2310.6,8.65553]
[1725721729567,3.0,2311.1,2310.6,8.65552]
[1725721729762,3.0,2311.1,2310.7,0.11964801]
[1725721730089,0.732685,2311.0,2310.7,0.11964801]
[1725721730470,5.059915,2311.0,2310.7,0.11964801]
[1725721730804,4.3275,2310.8,2310.3,4.32842]
[1725721730974,4.3275,2310.8,2310.2,4.3285]
[1725721730975,3.0,2310.7,2310.2,4.3285]
[1725721731169,3.0,2310.7,2310.4,0.11593815]
[1725721731366,0.73275,2310.6,2310.3,0.11605627]
[1725721731607,0.73275,2310.6,2310.2,4.3285]
[1725721731808,3.0,2310.7,2310.4,4.44400815]
[1725721732119,4.32734,2310.9,2310.3,0.11605627]
[1725721732410,4.32769,2310.7,2310.3,0.11605627]
[1725721732576,3.0,2310.6,2310.2,4.32849]
[1725721732779,3.0,2310.8,2310.4,0.11593815]
[1725721732963,1.165476,2310.7,2310.3,4.44437627]
[1725721733167,1.165476,2310.7,2310.5,0.11582004]
[1725721733380,1.165476,2310.7,2310.4,0.11593815]
[1725721734107,4.32801,2310.6,2310.4,0.11593815]
[1725721734302,4.32801,2310.6,2309.7,2.4875]
[1725721734303,4.32894,2310.1,2309.6,4.32973]
[1725721734504,4.32892,2310.1,2309.5,4.32994]
[1725721734807,4.32892,2310.1,2309.4,4.33001]
[1725721734808,3.0,2310.0,2309.6,4.32974]
[1725721735117,7.3291,2310.0,2309.4,4.32998]
[1725721735414,7.3291,2310.0,2309.4,8.65995]
[1725721735580,0.73291,2309.9,2309.5,4.32978]
[1725721735779,0.73291,2309.9,2309.4,4.32997]
[1725721735992,0.73291,2309.9,2309.3,4.33026]
[1725721735993,5.64945646,2309.9,2309.3,4.33026]
[1725721736299,7.3294,2309.8,2309.3,4.33026]
[1725721736505,3.0,2309.8,2309.2,4.33037]
[1725721736712,5.67284404,2309.7,2309.2,4.33037]
[1725721736919,3.0,2309.6,2309.2,4.33037]
[1725721737371,1.34326404,2309.7,2309.3,4.33025]
[1725721737573,10.00264404,2309.7,2309.2,4.33037]
[1725721737907,3.0,2309.6,2308.9,0.4348]
[1725721738093,3.0,2309.8,2309.5,4.32994]
[1725721738469,3.0,2309.8,2309.1,4.33054]
[1725721738470,3.0,2309.8,2309.3,4.33025]
[1725721738703,4.32966,2309.7,2309.1,4.33057]
[1725721738905,3.0,2309.6,2309.1,4.33057]
[1725721739116,1.165935,2309.5,2309.0,8.66157]
[1725721739321,4.32912,2310.0,2309.0,8.66157]
[1725721739322,6.12893,2310.4,2309.0,4.33079]
[1725721739497,4.32878,2310.2,2309.7,4.32955]
[1725721739690,4.32878,2310.2,2309.5,4.3299]
[1725721739691,4.32875,2310.2,2309.6,4.32965]
[1725721739897,3.0,2310.1,2309.7,4.32953]
[1725721740088,3.0,2310.1,2309.7,4.32946]
[1725721740282,0.3,2310.0,2309.8,4.32924]
[1725721740510,0.3,2310.0,2309.7,4.32941]
[1725721740824,4.32884,2310.1,2309.6,4.32975]
[1725721740980,7.329,2310.0,2309.3,4.33018]
[1725721741182,4.32976,2309.6,2308.9,4.33093]
[1725721741381,4.91654646,2309.5,2309.0,4.33071]
[1725721741589,3.0,2309.4,2309.2,4.33045]
[1725721741792,0.3,2309.4,2309.1,4.33059]
[1725721741995,7.32966,2309.7,2309.1,8.66117]
[1725721742195,7.32966,2309.7,2309.1,4.33058]
[1725721742596,4.32986,2309.6,2309.1,4.33058]
[1725721742796,3.0,2309.5,2309.1,4.33058]
[1725721742997,7.32966,2309.7,2309.2,4.3304]
[1725721743195,1.22462065,2309.6,2309.2,4.3304]
[1725721743398,1.22462065,2309.6,2309.1,4.33058]
[1725721743594,4.33005,2309.5,2308.9,4.33092]
[1725721743797,3.0,2309.4,2308.9,8.66187]
[1725721744021,3.0,2309.4,2308.9,4.33092]
[1725721744196,1.22465865,2309.3,2308.9,4.33092]
[1725721744618,4.33099,2309.0,2308.4,4.33186]
[1725721744798,4.3322,2308.3,2307.7,4.33331]
[1725721744993,0.43322,2308.2,2307.5,8.66714]
[1725721745194,12.68231646,2308.2,2307.5,4.33355]
[1725721745424,12.68231646,2308.2,2307.6,4.33337]
[1725721745642,3.0,2308.2,2308.1,4.33256]
[1725721745813,4.91654646,2308.5,2308.1,4.33256]
[1725721746017,3.0,2308.4,2308.1,4.33256]
[1725721746738,3.0,2308.4,2307.9,4.33281]
[1725721747629,3.0,2308.4,2308.0,4.33273]
[1725721747809,4.22482065,2308.4,2308.0,0.1057452]
[1725721748251,0.45411521,2308.3,2308.0,0.1057452]
[1725721749650,4.78639521,2308.3,2308.0,0.1057452]
[1725721749817,3.0,2308.2,2308.0,0.1057452]
[1725721750016,3.0,2308.2,2307.7,4.33319]
[1725721750212,3.90112159,2308.2,2307.7,8.66639]
[1725721750418,3.90112159,2308.2,2307.8,4.33307]
[1725721750618,3.90112159,2308.2,2307.9,4.33291]
[1725721750844,0.45411521,2308.3,2307.8,0.10773809]
[1725721751158,0.45411521,2308.3,2307.9,0.1076674]
[1725721751359,4.78632521,2308.3,2307.9,0.1076674]
[1725721751559,3.0,2308.2,2307.7,8.66635]
[1725721751862,3.0,2308.2,2307.8,4.3331]
[1725721752219,3.0,2308.2,2307.9,0.10770317]
[1725721752444,3.77863252,2308.2,2307.9,0.10770317]
[1725721752934,3.77863252,2308.2,2307.9,4.44063317]
[1725721753133,0.45411521,2308.3,2308.0,4.33273]
[1725721753448,0.45411521,2308.3,2307.9,4.44053317]
[1725721753650,0.45411521,2308.3,2308.0,0.107555]
[1725721754251,4.78642521,2308.3,2308.0,0.107555]
[1725721754451,4.78642521,2308.3,2307.8,4.33309]
[1725721754452,7.33254,2308.2,2307.7,8.6664]
[1725721754691,3.0,2308.2,2307.8,0.10779174]
[1725721754863,4.78632521,2308.3,2307.8,0.10779174]
[1725721755063,3.0,2308.2,2307.8,4.33309]
[1725721755287,3.0,2308.2,2307.9,0.10767337]
[1725721756756,4.33275,2308.0,2307.9,0.10767337]
[1725721757012,5.757861,2308.0,2307.4,8.70387]
[1725721757173,8.757861,2308.0,2307.9,0.10408472]
[1725721757493,4.33299,2307.9,2307.4,8.70387]
[1725721757665,2.09414734,2307.8,2307.4,8.70387]
[1725721757871,2.09414734,2307.8,2307.5,4.33367]
[1725721758196,1.425111,2308.0,2307.6,4.3335]
[1725721758696,4.3864,2308.2,2307.8,4.33308]
[1725721759073,4.3864,2308.2,2307.8,4.33311]
[1725721759284,4.3864,2308.2,2307.6,4.33334]
[1725721759285,10.57659748,2308.2,2307.7,4.33331]
[1725721759504,4.33276,2308.0,2307.5,4.33368]
[1725721759656,4.33276,2308.0,2307.4,4.33375]
[1725721759657,4.3331,2307.9,2307.4,4.33375]
[1725721759987,3.0,2307.8,2307.4,4.33375]
[1725721760159,7.33313,2307.8,2307.3,4.33406]
[1725721760359,8.499719,2307.8,2307.3,4.3339]
[1725721760600,4.166589,2307.8,2307.4,4.28387]
[1725721761196,3.0,2307.7,2307.6,4.33341]
[1725721761388,3.0,2307.9,2307.6,4.33341]
[1725721761600,3.0,2308.0,2307.6,4.33341]
[1725721761986,3.0,2308.1,2307.7,4.3333]
[1725721762395,3.0,2308.1,2307.6,8.66681]
[1725721762707,5.34360123,2308.1,2307.7,0.09444609]
[1725721763313,5.34360123,2308.1,2307.7,4.42771609]
[1725721763618,0.45419421,2308.0,2307.8,4.33312]
[1725721763808,0.45419421,2308.0,2307.9,4.33294]
[1725721764123,0.45419421,2308.0,2307.9,4.42391994]
[1725721764829,0.45419421,2308.0,2307.9,0.09097994]
[1725721765192,3.03999421,2308.0,2307.9,0.09097994]
[1725721765423,3.77725963,2308.0,2307.7,4.3333]
[1725721765584,3.77725963,2308.0,2307.5,4.33356]
[1725721765585,3.77725963,2308.0,2307.9,0.08781586]
[1725721765923,11.11010963,2308.0,2307.9,0.08482442]
[1725721766411,11.11010963,2308.0,2307.4,4.33385]
[1725721766412,4.33298,2307.9,2307.4,4.33385]
[1725721766600,3.0,2307.8,2307.3,4.33388]
[1725721766805,8.87743896,2307.8,2307.3,8.66784]
[1725721767107,8.87743896,2307.8,2307.3,4.33388]
[1725721767622,9.40645962,2307.5,2307.0,4.33454]
[1725721768131,3.0,2307.4,2307.0,4.33454]
[1725721768282,7.33389,2307.4,2306.9,4.33465]
[1725721768488,9.00792496,2307.4,2306.9,8.66935]
[1725721769183,9.00792496,2307.4,2306.9,4.33465]
[1725721769588,9.00792496,2307.4,2306.0,6.82001]
[1725721769589,5.07269962,2307.1,2306.0,6.82001]
[1725721770015,4.93097438,2306.7,2306.4,4.33566]
[1725721770223,4.93097438,2306.7,2306.5,8.67091]
[1725721770527,7.93097438,2307.0,2306.7,4.33504]
[1725721770726,7.93097438,2307.0,2306.9,4.33482]
[1725721770927,8.98265182,2307.0,2306.7,4.33504]
[1725721771283,7.93097438,2307.0,2306.8,4.33486]
[1725721771528,7.93097438,2307.0,2306.9,8.66964]
[1725721771529,3.0,2307.0,2306.9,8.66964]
[1725721772235,6.73157438,2307.3,2307.0,4.33458]
[1725721772236,3.0,2307.2,2307.0,4.33458]
[1725721772732,3.0,2307.2,2307.1,0.07806431]
[1725721773728,3.0,2307.2,2307.1,0.07819555]
[1725721773930,3.0,2307.2,2306.9,4.33471]
[1725721774231,3.0,2307.2,2307.1,0.07553698]
[1725721774433,3.0,2307.2,2307.0,4.41010544]
[1725721774599,3.0,2307.2,2307.1,0.07553698]
[1725721774991,3.0,2307.2,2307.0,4.33452]
[1725721775234,3.0,2307.2,2307.1,0.07553698]
[1725721775888,3.79309744,2307.2,2306.9,4.33478]
[1725721776089,3.79309744,2307.2,2307.0,0.07564948]
[1725721776400,4.33444,2307.1,2307.0,0.07564948]
[1725721776613,3.0,2307.1,2307.0,0.07564948]
[1725721776826,3.0,2307.1,2306.7,4.33505]
[1725721777027,16.20095718,2307.1,2307.0,0.07564948]
[1725721777334,16.20111718,2307.1,2307.0,0.07564948]
[1725721777533,11.86651718,2307.1,2306.5,4.33547]
[1725721777738,3.0,2307.0,2306.7,4.33518]
[1725721777918,7.93097438,2307.0,2306.7,4.33508]
[1725721778120,7.93097438,2307.0,2306.8,0.07601173]
[1725721778322,4.3359,2306.4,2305.5,2.6595]
[1725721778496,4.93097438,2306.1,2305.7,4.33695]
[1725721778695,8.4028331,2306.3,2305.7,8.67393]
[1725721778926,4.93097438,2306.1,2305.7,8.67393]
[1725721779239,3.0,2306.0,2305.5,4.33731]
[1725721779436,4.93097438,2305.8,2305.5,4.33731]
[1725721779804,3.0,2306.0,2305.4,4.4243093]
[1725721780005,7.33642,2306.1,2305.5,5.84812055]
[1725721780236,4.93097438,2306.0,2305.5,4.33733]
[1725721780532,7.3368,2305.9,2305.3,8.67544]
[1725721781412,9.26808438,2305.7,2305.1,4.33809]
[1725721781597,4.93097438,2305.4,2305.0,4.33838]
[1725721781800,2.51304791,2305.4,2305.1,4.33819]
[1725721782003,3.0,2305.3,2305.2,4.33801]
[1725721782330,4.93097438,2305.4,2305.0,4.33838]
[1725721782507,3.0,2305.3,2304.9,4.33844]
[1725721782708,3.0,2305.3,2304.9,8.67692]
[1725721782922,3.0,2305.3,2304.9,4.33844]
[1725721784401,3.0,2305.3,2304.9,8.67692]
[1725721784909,3.0,2305.3,2304.9,4.33844]
[1725721785220,4.50612344,2305.3,2304.9,4.33844]
[1725721785416,4.50612344,2305.3,2304.6,0.4348]
[1725721785616,4.33803,2305.2,2304.7,4.3389]
[1725721785834,3.0,2305.1,2304.7,8.7530333]
[1725721786048,3.0,2305.1,2304.7,0.0752733]
[1725721786242,5.22270034,2305.1,2304.7,0.0752733]
[1725721786534,5.22270034,2305.1,2304.8,0.07526814]
[1725721786535,3.0,2305.0,2304.8,0.07526814]
[1725721787024,3.0,2305.0,2304.6,4.3391]
[1725721787228,3.0,2305.0,2304.9,0.07514946]
[1725721787402,7.33843,2305.0,2304.5,4.33918]
[1725721787599,7.33843,2305.0,2304.9,0.07514946]
[1725721787877,4.25611303,2305.0,2304.6,4.33914]
[1725721788032,3.0,2305.0,2304.6,4.33914]
[1725721788200,7.3385,2305.0,2304.7,0.07538684]
[1725721788637,7.3385,2305.0,2304.5,4.33918]
[1725721788942,9.26984438,2304.8,2304.3,4.77436]
[1725721789147,7.33899,2304.7,2304.6,0.07550554]
[1725721789316,7.33899,2304.7,2304.2,4.33988]
[1725721789648,7.33899,2304.7,2304.6,0.07550554]
[1725721789649,3.0,2304.7,2304.6,0.07550554]
[1725721789817,3.0,2304.7,2304.4,4.33936]
[1725721790146,3.0,2304.8,2304.5,0.07562426]
[1725721790829,2.7928,2305.4,2304.5,0.51712269]
[1725721791030,4.33802,2305.2,2304.7,4.33891]
[1725721791357,7.13053,2305.4,2304.8,8.75264814]
[1725721791503,7.13053,2305.4,2304.8,4.41388814]
[1725721791734,7.13053,2305.4,2304.9,4.33848]
[1725721792271,7.13053,2305.4,2304.8,4.41388814]
[1725721792272,7.13053,2305.4,2305.0,0.07503078]
[1725721792473,5.54398044,2305.3,2305.0,0.07503078]
[1725721792779,4.20615044,2305.3,2305.1,0.07491212]
[1725721793147,8.54398044,2305.3,2305.1,0.07491212]
[1725721793353,8.54398044,2305.3,2304.8,4.33862]
[1725721793665,8.54398044,2305.3,2305.2,0.07479347]
[1725721793866,4.20615044,2305.3,2304.9,4.33853]
[1725721794068,4.6608258,2305.3,2304.8,4.33862]
[1725721794367,3.45467536,2305.3,2304.9,4.41362946]
[1725721794532,3.45467536,2305.3,2305.0,4.2883]
[1725721794732,3.45467536,2305.3,2305.1,4.33811]
[1725721794968,3.3971112,2305.3,2305.0,8.70163078]
[1725721795273,3.3971112,2305.3,2305.2,0.07479347]
[1725721795443,3.3971112,2305.3,2305.2,4.33801]
[1725721795772,3.3971112,2305.3,2305.2,4.41280347]
[1725721796537,3.3971112,2305.3,2305.2,0.07479347]
[1725721797431,3.3971112,2305.3,2305.2,4.33801]
[1725721797632,2.54787296,2305.4,2305.2,4.41323375]
[1725721797835,0.45463894,2305.3,2305.2,4.41323375]
[1725721798032,0.45463894,2305.3,2305.2,0.07522375]
[1725721798266,0.75424744,2305.6,2305.2,4.41321375]
[1725721799133,5.09154744,2305.6,2305.2,0.07522375]
[1725721799576,9.26843438,2305.5,2305.2,0.07522375]
[1725721799754,8.34008818,2305.4,2305.2,0.07522375]
[1725721799956,3.70252716,2305.3,2304.8,4.33862]
[1725721800281,3.0,2305.2,2304.8,4.33862]
[1725721800461,1.38782675,2305.2,2305.0,4.33838]
[1725721800773,3.70252716,2305.3,2305.1,4.41337459]
[1725721801188,3.70252716,2305.3,2305.1,0.07529459]
[1725721801336,9.67840269,2305.3,2305.1,0.07529459]
[1725721801535,9.67840269,2305.3,2304.8,4.33865]
[1725721801757,9.67840269,2305.3,2305.2,0.07517593]
[1725721801962,9.67840269,2305.3,2304.7,4.33884]
[1725721802173,9.67840269,2305.3,2305.2,0.07517593]
[1725721802470,9.67840269,2305.3,2304.8,4.33873]
[1725721802674,12.67840269,2305.3,2305.2,0.07517593]
[1725721802832,4.33801,2305.2,2304.7,4.33884]
[1725721803038,3.0,2305.1,2304.8,4.33869]
[1725721803267,3.0,2305.2,2304.8,4.33869]
[1725721804376,3.0,2305.2,2304.9,4.33857]
[1725721804937,4.70160227,2305.2,2304.7,4.33884]
[1725721805137,3.70252716,2305.0,2304.6,4.33909]
[1725721805349,3.0,2304.9,2304.5,4.33921]
[1725721805744,7.33861,2304.9,2304.4,4.33951]
[1725721805950,3.70252716,2304.8,2304.4,4.33951]
[1725721806150,5.24048188,2304.8,2304.4,4.33951]
[1725721806485,3.70252716,2304.6,2304.3,4.33957]
[1725721806837,3.0,2304.5,2304.3,4.33957]
[1725721807288,3.70252716,2304.9,2304.7,4.33891]
[1725721807575,6.70252716,2305.1,2304.8,4.33858]
[1725721807778,7.9767241,2305.1,2304.8,4.41473872]
[1725721807979,3.70252716,2304.9,2304.8,0.07615872]
[1725721808184,3.70252716,2304.9,2304.6,4.33905]
[1725721808354,3.70252716,2304.9,2304.8,0.07615872]
[1725721808541,3.70252716,2304.9,2304.8,4.33877]
[1725721808542,6.70252716,2304.9,2304.8,4.33877]
[1725721808738,6.70252716,2304.9,2304.8,0.07615872]
[1725721808984,6.70252716,2304.9,2304.8,4.33877]
[1725721809277,6.70252716,2304.9,2304.8,4.41492872]
[1725721809882,6.70252716,2304.9,2304.8,0.07615872]
[1725721810181,6.70252716,2304.9,2304.7,4.33883]
[1725721810395,6.70252716,2304.9,2304.8,0.07615872]
[1725721810547,6.70252716,2304.9,2304.7,4.33883]
[1725721810844,6.70252716,2304.9,2304.8,0.07615872]
[1725721811043,7.37277988,2304.9,2304.8,0.07615872]
[1725721811875,7.37277988,2304.9,2304.1,3.1286]
[1725721812071,3.0,2304.8,2304.4,4.33937]
[1725721812253,3.0,2304.8,2304.5,4.33933]
[1725721812574,3.0,2304.8,2304.5,4.41584483]
[1725721812982,3.0,2304.8,2304.5,0.07651483]
[1725721813294,0.67025272,2304.7,2304.5,0.07651483]
[1725721813589,3.70252716,2304.6,2304.2,4.33989]
[1725721813876,3.0,2304.5,2304.2,4.33989]
[1725721815142,3.0,2304.5,2304.1,4.77475]
[1725721815357,4.65054568,2304.5,2304.1,9.11472]
[1725721815539,4.65054568,2304.5,2304.1,4.77475]
[1725721815783,4.65054568,2304.5,2304.2,4.33987]
[1725721815986,3.0,2304.5,2304.2,4.33987]
[1725721816197,3.70252716,2304.3,2303.9,4.34036]
[1725721816494,4.3399,2304.2,2303.8,4.34055]
[1725721816689,4.3399,2304.2,2303.7,4.34082]
[1725721816690,7.3399,2304.2,2303.7,4.34082]
[1725721816858,4.34014,2304.1,2303.6,8.6818]
[1725721817045,8.85070472,2304.2,2303.7,4.34074]
[1725721817250,8.85070472,2304.2,2303.6,4.34088]
[1725721817451,3.70252716,2304.0,2303.4,4.34129]
[1725721817678,4.95785035,2304.0,2303.4,4.34129]
[1725721817993,4.3405,2303.9,2303.4,4.34129]
[1725721818161,4.95785035,2304.0,2303.4,4.34129]
[1725721818162,9.29826035,2304.0,2303.4,4.34129]
[1725721818362,13.63872035,2304.0,2303.4,4.34129]
[1725721818575,13.63865035,2304.0,2303.4,4.34129]
[1725721818892,10.76927716,2303.8,2303.2,4.34166]
[1725721819185,10.76927716,2303.8,2303.1,4.34195]
[1725721819489,3.70252716,2303.6,2303.1,4.34195]
[1725721819653,3.0,2303.5,2303.1,4.34195]
[1725721820001,3.70252716,2303.2,2302.6,8.68556]
[1725721820190,3.70252716,2303.0,2302.6,4.34276]
[1725721820672,3.0,2302.9,2302.6,4.34276]
[1725721820992,1.38625602,2302.9,2302.6,4.34276]
[1725721821160,3.70252716,2303.0,2302.6,4.34276]
[1725721821369,9.28334988,2303.0,2302.5,4.34306]
[1725721821564,9.28333988,2303.0,2302.5,4.34293]
[1725721821961,4.34236,2302.9,2302.4,4.34317]
[1725721822166,4.34256,2302.8,2302.3,0.4348]
[1725721822456,7.06866,2302.8,2302.3,0.4348]
[1725721822763,8.82832109,2302.8,2302.4,0.07989541]
[1725721822950,13.17096109,2302.8,2302.4,0.07989541]
[1725721823155,3.0,2302.7,2302.2,4.3435]
[1725721823356,3.0,2302.7,2302.5,0.07977648]
[1725721823565,3.0,2302.7,2302.2,4.3435]
[1725721823888,1.18283211,2302.6,2302.2,4.34362]
[1725721824097,1.18283211,2302.6,2302.1,4.34383]
[1725721824676,2.7261,2302.2,2301.7,4.34447]
[1725721824885,7.94701818,2302.1,2301.7,8.68898]
[1725721825055,9.44868,2302.1,2301.7,4.34447]
[1725721825976,9.44868,2302.1,2301.7,8.68899]
[1725721826589,9.44868,2302.1,2301.7,4.34447]
[1725721826794,2.7261,2302.9,2301.8,0.08689711]
[1725721826952,4.34265,2302.8,2302.3,4.34338]
[1725721827351,7.67311818,2302.9,2302.5,4.34308]
[1725721827589,12.01548818,2302.9,2302.3,4.34334]
[1725721827797,1.20154882,2302.8,2302.3,4.34334]
[1725721828559,5.54410882,2302.8,2302.3,4.34334]
[1725721828784,3.0,2302.7,2302.3,4.34334]
[1725721828949,3.45490104,2302.7,2302.3,4.34334]
[1725721829666,3.45490104,2302.7,2302.4,4.34328]
[1725721830012,0.45490104,2302.7,2302.6,4.34291]
[1725721830312,0.45490104,2302.7,2302.6,8.68582]
[1725721830902,2.7261,2303.7,2303.0,4.34202]
[1725721831114,0.45483213,2303.1,2303.0,4.34202]
[1725721831313,9.44959182,2303.6,2303.0,4.34202]
[1725721831314,0.76731182,2303.6,2303.0,4.34216]
[1725721831495,0.76731182,2303.6,2302.9,0.4348]
[1725721831496,0.76731182,2303.6,2303.3,4.34157]
[1725721831874,0.45482046,2303.5,2303.3,4.34157]
[1725721832267,0.45482046,2303.5,2303.2,8.68329]
[1725721832501,0.45482046,2303.5,2303.2,4.34162]
[1725721832768,5.19095369,2303.5,2302.9,4.34235]
[1725721832997,0.39482323,2303.5,2302.7,0.4348]
[1725721833168,0.39482323,2303.5,2303.0,4.34204]
[1725721833500,3.39482323,2303.5,2303.0,4.34204]
[1725721833706,0.89580715,2303.4,2302.9,4.34234]
[1725721834006,0.89580715,2303.4,2303.0,4.34214]
[1725721834964,0.89580715,2303.4,2303.1,4.34189]
[1725721835165,3.39482323,2303.5,2303.2,4.34177]
[1725721835366,3.45478645,2303.6,2303.2,4.34177]
[1725721835564,3.45478645,2303.6,2303.2,4.34165]
[1725721835803,4.34141,2303.4,2302.8,4.34235]
[1725721836011,4.34141,2303.4,2302.9,4.34224]
[1725721836975,4.34141,2303.4,2302.8,8.68479]
[1725721837171,5.55513664,2303.4,2302.8,4.34235]
[1725721837370,7.79594645,2303.6,2303.1,4.34196]
[1725721837804,12.13714645,2303.6,2303.2,0.12570716]
[1725721838012,4.34123,2303.5,2303.2,0.12570716]
[1725721838210,3.0,2303.4,2303.2,0.12570716]
[1725721838710,3.0,2303.4,2303.0,4.34216]
[1725721839184,3.0,2303.4,2303.1,4.46777798]
[1725721839379,4.79592645,2303.6,2303.1,4.46777798]
[1725721839380,3.0,2303.5,2303.1,4.46777798]
[1725721839585,3.0,2303.5,2303.2,4.34177]
[1725721839810,3.45478645,2303.6,2303.1,0.12582798]
[1725721840011,4.34122,2303.5,2303.3,0.12558635]
[1725721840171,3.0,2303.4,2303.2,0.12570716]
[1725721840514,7.79583645,2303.6,2303.4,0.12546555]
[1725721840720,4.3414,2303.4,2303.3,0.12558635]
[1725721841008,4.34226,2303.0,2302.5,4.34297]
[1725721841514,4.34239,2302.9,2302.4,4.77808]
[1725721841672,7.36439,2302.9,2302.4,4.77808]
[1725721841870,4.192665,2302.9,2302.4,0.4348]
[1725721842183,4.192665,2302.9,2302.2,4.34354]
[1725721842184,3.0,2302.8,2302.2,4.34354]
[1725721842403,3.0,2302.8,2302.3,4.34342]
[1725721842693,3.0,2302.8,2302.4,4.34326]
[1725721842899,7.34257,2302.8,2302.2,8.68707]
[1725721843206,3.0,2302.8,2302.3,4.34345]
[1725721843407,3.0,2302.8,2302.4,4.34325]
[1725721843607,4.036446,2302.8,2302.3,4.34345]
[1725721843913,4.036446,2302.8,2302.3,4.34338]
[1725721844131,8.379006,2302.8,2302.3,4.34338]
[1725721844285,8.379006,2302.8,2302.1,9.12219]
[1725721844686,4.34281,2302.7,2302.1,4.77847]
[1725721844888,4.34281,2302.7,2302.1,9.12223]
[1725721845090,6.41189342,2302.7,2302.1,4.77847]
[1725721845315,4.34292,2302.6,2302.1,4.77847]
[1725721845515,4.34292,2302.6,2302.1,9.12223]
[1725721845680,4.34292,2302.6,2302.1,4.77847]
[1725721845882,2.06908342,2302.7,2302.2,4.34357]
[1725721846305,7.34256,2302.8,2302.3,4.34347]
[1725721846306,3.0,2302.8,2302.3,4.34347]
[1725721846494,3.0,2302.8,2302.5,4.34299]
[1725721846679,3.0,2302.8,2302.3,4.34336]
[1725721846881,3.0,2302.8,2302.4,4.34313]
[1725721847228,3.0,2302.8,2302.6,4.34279]
[1725721847390,3.0,2302.8,2302.5,8.68618]
[1725721847598,3.0,2302.8,2302.5,4.34309]
[1725721848415,3.0,2302.8,2302.5,4.34301]
[1725721848686,0.45481492,2302.7,2302.5,4.34301]